fUSD/lending_fUSD_20240528
["ID","MTS","AMOUNT","RATE_DAILY","PERIOD"]
[328132241,1716922232714,-151.69,0.0001299,2]
[328132243,1716922232727,-151.69,0.0001299,2]
[328132245,1716922232736,-634.305338,0.00012991,2]
[328132247,1716922232745,-647.1143063,0.00012991,2]
[328132248,1716922232758,-659.9232745,0.00012991,2]
[328132249,1716922232767,-672.7322428,0.00012991,2]
[328132250,1716922232777,-12141.5242988,0.00012991,2]
[328132251,1716922232786,-12503.8063979,0.00012991,2]
[328132252,1716922232795,-12866.088497,0.00012991,2]
[328132253,1716922232805,-13228.3705961,0.00012991,2]
[328132254,1716922232814,-2754.2461534,0.00012991,2]
[328132255,1716922232823,-2836.4280981,0.00012991,2]
[328132256,1716922232832,-2918.6100427,0.00012991,2]
[328132257,1716922232842,-3000.7919874,0.00012991,2]
[328132258,1716922232851,-1348.13205731,0.00012998,2]
[328132259,1716922232860,-329.00725299,0.00012998,2]
[328132260,1716922232870,-192.7333,0.00012998,2]
[328132261,1716922232879,-266.22124095,0.00012998,2]
[328132262,1716922232890,-226.12997292,0.00012998,2]
[328132263,1716922232899,-489.24399676,0.00012998,2]
[328132264,1716922232909,-254.06455582,0.00012998,2]
[328132265,1716922232918,-150.01,0.00012999,2]
[328132266,1716922232928,-366.0850192,0.00012999,2]
[328132267,1716922232938,-2142.93656164,0.00012999,2]
[328132268,1716922232948,-150.0,0.00012999,2]
[328132269,1716922232957,-572.0,0.00013,2]
[328132270,1716922232967,-167072.6891872,0.00013,2]
[328132271,1716922232983,-3252.16784281,0.00013,2]
[328132272,1716922232995,-538.88,0.00013,2]
[328132273,1716922233007,-20883.84140123,0.00013,2]
[328132274,1716922233017,-3655.23039409,0.00013,2]
[328132275,1716922233029,-10126.54476,0.00013,2]
[328132276,1716922233040,-2744.48706656,0.00013,2]
[328132277,1716922233052,-7847.49941669,0.00013,2]
[328132278,1716922233081,-201807.51264409,0.00013,2]
[328132279,1716922233092,-3754.2535009,0.00013,2]
[328132280,1716922233104,-675.675,0.00013,2]
[328132281,1716922233116,-2015.29501095,0.00013,2]
[328132282,1716922233127,-1308.83432274,0.00013,2]
[328132283,1716922233139,-2512.05970591,0.00013,2]
[328132284,1716922233150,-378.69,0.00013,2]
[328132285,1716922233162,-604.135,0.00013,2]
[328132286,1716922233174,-1000.06,0.00013,2]
[328132287,1716922233185,-2253.71037969,0.00013,2]
[328132288,1716922233197,-5082.4753998,0.00013,2]
[328132289,1716922233208,-4512.90651215,0.00013,2]
[328132290,1716922233238,-778.63384695,0.00013,2]
[328132291,1716922233248,-691.95,0.00013,2]
[328132292,1716922233259,-6845.67216,0.00013,2]
[328132293,1716922233271,-272.9175,0.00013,2]
[328132294,1716922240059,-244.05667947,0.00012999,2]
[328132295,1716922240068,-522.0,0.00013,2]
[328132296,1716922240078,-21.35264384,0.00013,2]
[328132297,1716922240090,-943310.7501574,0.00013,2]
[328132298,1716922240346,-14350.83667979,0.00013,2]
[328132299,1716922240359,-405.680285,0.00013,2]
[328132300,1716922240370,-6749.79552001,0.00013,2]
[328132301,1716922240381,-275.14033478,0.00013,2]
[328132302,1716922240393,-19005.0,0.00013,2]
[328132303,1716922240404,-6784.76364,0.00013,2]
[328132304,1716922240416,-1889.84999998,0.00013,2]
[328132305,1716922240427,-3536.77635841,0.00013,2]
[328132306,1716922240439,-17273.46204595,0.00013,2]
[328132307,1716922240450,-331.77587755,0.00013,2]
[328132308,1716922240462,-434716.76368276,0.00013,2]
[328132309,1716922240473,-3292.56438628,0.00013,2]
[328132310,1716922240489,-3819.99999995,0.00013,2]
[328132314,1716922240665,-67500.0,0.00013,2]
[328132353,1716922241218,-376.08080662,0.00013,2]
[328132354,1716922241232,-2095.4278427,0.00013,2]
[328132355,1716922241244,-340.0090999,0.00013,2]
[328132356,1716922241255,-953.445,0.00013,2]
[328132357,1716922241266,-1899.99999999,0.00013,2]
[328132358,1716922241277,-1009.71667059,0.00013,2]
[328132365,1716922242576,-3040.35176,0.00013,2]
[328132367,1716922242588,-166549.99995,0.00013,2]
[328132419,1716922243277,-162.70445298,0.00012999,2]
[328132421,1716922243286,-669.25037879,0.00013,2]
[328132423,1716922243297,-292047.06495697,0.00013,2]
[328132424,1716922243501,-1081959.72855296,0.00013,2]
[328132425,1716922243538,-621.67444218,0.00012998,2]
[328132426,1716922243548,-623080.47030083,0.00013,2]
[328132427,1716922243559,-3420.65265017,0.00013,2]
[328132428,1716922243570,-6929.0337162,0.00013,2]
[328132429,1716922243581,-104384.93759522,0.00013,2]
[328132430,1716922243593,-14572.2237591,0.00013,2]
[328132431,1716922243604,-2372.05850594,0.00013,2]
[328132432,1716922243614,-11707.87264549,0.00013,2]
[328132433,1716922243625,-6266.49183932,0.00013,2]
[328132434,1716922243636,-11980.70100004,0.00013,2]
[328132435,1716922243647,-4424.70324299,0.00013,2]
[328132475,1716922246281,-459.4508895,0.00013,2]
[328132476,1716922246293,-261.90998834,0.00013,2]
[328132477,1716922246304,-1900.49999999,0.00013,2]
[328132478,1716922246314,-949.65,0.00013,2]
[328132479,1716922246326,-3226.2,0.00013,2]
[328132480,1716922246336,-3115.34561217,0.00013,2]
[328132481,1716922246348,-5822.73468714,0.00013,2]
[328132482,1716922246359,-1011.23426476,0.00013,2]
[328132483,1716922246369,-2453.25122604,0.00013,2]
[328132484,1716922246380,-1012.02,0.00013,2]
[328132485,1716922246391,-378.5,0.00013,2]
[328132486,1716922246402,-647.8,0.00013,2]
[328132487,1716922246538,-264.208,0.000129,2]
[328132488,1716922246549,-55.77775901,0.000129,2]
[328132489,1716922246559,-3746.22224104,0.00013,2]
[328132490,1716922246571,-1930.35,0.00013,2]
[328132491,1716922246582,-31471.5,0.00013,2]
[328133363,1716922256111,282.85,0.00010959,2]
[328133561,1716922263035,1410.38648358,9.849e-05,2]
[328133562,1716922267176,235.71,0.00010959,2]
[328133563,1716922278297,196.43,0.00010959,2]
[328133564,1716922278823,956.39580577,9.357e-05,2]
[328133565,1716922288986,163.69,0.00010959,2]
[328133566,1716922310634,818.46,0.00010959,2]
[328133567,1716922444320,249.26,0.00010717,2]
[328133568,1716922445219,-532.39846733,0.00011568,2]
[328133573,1716922910369,236.79,9.901e-05,2]
[328133591,1716923374394,250.0,0.00011526,2]
[328133592,1716923377304,1500.0,0.00011553,2]
[328133593,1716923400396,13.21,9.644e-05,2]
[328133594,1716923400420,211.74,9.644e-05,2]
[328133595,1716923413127,150.0,0.00011548,2]
[328133602,1716923432335,-685.49,0.00011766,2]
[328133603,1716923432345,-9353.73654666,0.00011791,2]
[328133604,1716923432356,-1456.34099637,0.00011791,2]
[328133605,1716923432576,-10312.75245697,0.00011791,2]
[328133607,1716923432586,-2000.0,0.00011795,3]
[328133609,1716923432597,-938.36,0.00011795,2]
[328133610,1716923432607,-1551.71,0.00011798,2]
[328133611,1716923432616,-343.55,0.00011799,2]
[328133612,1716923432626,-224.95,0.00011908,2]
[328133613,1716923432636,-464.05,0.00012041,2]
[328133614,1716923432645,-464.05,0.00012074,2]
[328133615,1716923432654,-464.05,0.00012107,2]
[328133616,1716923432664,-464.05,0.0001214,2]
[328133617,1716923432674,-464.05,0.00012173,2]
[328133618,1716923432683,-464.05,0.00012206,2]
[328133619,1716923432692,-464.05,0.00012239,2]
[328133620,1716923432701,-464.05,0.00012272,2]
[328133621,1716923432711,-464.05,0.00012305,2]
[328133622,1716923432720,-464.05,0.00012338,2]
[328133623,1716923432730,-1299.11942176,0.00012348,2]
[328133624,1716923432739,-154.77,0.00012352,2]
[328133625,1716923432749,-446.12,0.00012355,2]
[328133626,1716923432758,-464.05,0.00012371,2]
[328133627,1716923432767,-464.05,0.00012404,2]
[328133628,1716923432777,-464.05,0.00012437,2]
[328133629,1716923432787,-464.05,0.0001247,2]
[328133630,1716923432796,-464.05,0.00012503,2]
[328133631,1716923432806,-464.05,0.00012536,2]
[328133632,1716923432815,-163.04,0.0001254,2]
[328133633,1716923432824,-464.05,0.00012569,2]
[328133634,1716923432833,-164.43,0.00012583,2]
[328133635,1716923432842,-464.05,0.00012602,2]
[328133636,1716923432851,-464.05,0.00012635,2]
[328133637,1716923432861,-1000.0,0.00012641,2]
[328133638,1716923432870,-464.05,0.00012668,2]
[328133639,1716923432879,-463.44347189,0.00012772,2]
[328133640,1716923432889,-8702.03612151,0.00012881,2]
[328133641,1716923432898,-154.71852787,0.00012891,2]
[328133642,1716923432911,-1993.88919344,0.00012891,2]
[328133643,1716923432922,-410.493348,0.00012891,2]
[328133644,1716923438193,-667.76472037,0.00012891,2]
[328133647,1716923438205,-326.82220256,0.00012891,2]
[328133650,1716923438216,-804.4421225,0.00012891,2]
[328133653,1716923438228,-2174.18578526,0.00012891,2]
[328133656,1716923438237,-3440.802,0.00012891,2]
[328133659,1716923438247,-500.0,0.00012896,2]
[328133662,1716923438256,-5916.969507,0.000129,2]
[328133664,1716923438266,-14910.96039681,0.000129,2]
[328133666,1716923439518,-1972.49110319,0.000129,2]
[328133667,1716923439528,-500.0,0.000129,2]
[328133668,1716923439539,-1140.8114,0.000129,2]
[328133669,1716923439549,-545.2909,0.000129,2]
[328133670,1716923439558,-1037.2364,0.000129,2]
[328133671,1716923439568,-3214.62480558,0.000129,2]
[328133672,1716923439579,-3131.5,0.000129,2]
[328133673,1716923439847,-56037.46129442,0.000129,2]
[328133675,1716923439857,-4099.76714511,0.000129,2]
[328133677,1716923439866,-168.96300013,0.000129,2]
[328133679,1716923439876,-7500.0,0.000129,2]
[328133681,1716923439885,-35222.0,0.0001296,2]
[328133684,1716923439895,-2588.5663167,0.00012989,2]
[328133686,1716923439905,-587.2037682,0.00012989,2]
[328133688,1716923439915,-685.5412111,0.00012989,2]
[328133690,1716923439924,-168.61412784,0.00012998,2]
[328133691,1716923439933,-480.94869717,0.00012998,2]
[328133693,1716923439942,-210.44648753,0.00012998,2]
[328133695,1716923439953,-162.70445298,0.00012999,2]
[328133697,1716923439962,-27145.7547007,0.00012999,2]
[328133699,1716923439972,-28597.0287984,0.00013,2]
[328133702,1716923439983,-490.84691231,0.00013,2]
[328133704,1716923439995,-716.54130687,0.00013,2]
[328133706,1716923440006,-670.31329616,0.00013,2]
[328133708,1716923440017,-23207.44868249,0.00013,2]
[328133711,1716923440028,-3879.56954784,0.00013,2]
[328133821,1716923441102,-967.13553468,0.00013,2]
[328133925,1716923442283,-1696.1625,0.00013,2]
[328133927,1716923442296,-1293.59813421,0.00013,2]
[328133940,1716923442527,-162.70445298,0.00012999,2]
[328133941,1716923442538,-1335.57218429,0.00013,2]
[328133946,1716923443479,-378.1,0.00013,2]
[328133947,1716923443490,-505.39334394,0.00013,2]
[328133948,1716923443502,-6020.70060025,0.00013,2]
[328133949,1716923443513,-10383.296,0.00013,2]
[328133950,1716923443706,-280.5211295,0.00013,2]
[328133951,1716923443718,-5017.40599942,0.00013,2]
[328133952,1716923443729,-2488.43950035,0.00013,2]
[328133974,1716923446473,-1523.24264327,0.00013,2]
[328133975,1716923446485,-1897.35,0.00013,2]
[328133976,1716923446496,-1227.14827637,0.00013,2]
[328133977,1716923446508,-563.99099048,0.00013,2]
[328133991,1716923483037,410.08212737,0.00011548,2]
[328133992,1716923483831,549.79179438,0.00011548,2]
[328133993,1716923498463,281.46261555,0.00012998,7]
[328133994,1716923968147,170.4,9.567e-05,2]
[328133995,1716924061790,202.45,0.00011311,2]
[328134003,1716924582091,192.32,0.0001112,2]
[328134008,1716924632676,-524.14038835,0.00011591,2]
[328134009,1716924632686,-161.00961165,0.00012699,2]
[328134010,1716924632698,-145.70447979,0.00012699,2]
[328134011,1716924632708,-1087.93649749,0.000127,2]
[328134012,1716924632717,-2607.39967241,0.00012738,2]
[328134013,1716924632727,-26180.5094,0.000128,2]
[328134014,1716924632737,-500.0,0.00012896,2]
[328134015,1716924632747,-1087.9364975,0.00012898,2]
[328134016,1716924632757,-1650.8276,0.000129,2]
[328134017,1716924632767,-1670.0,0.000129,2]
[328134018,1716924632777,-1386.6682,0.000129,2]
[328134019,1716924632786,-1846.8835668,0.00012989,2]
[328134020,1716924632795,-706.634123,0.00012989,2]
[328134021,1716924632806,-422.117927,0.00012989,2]
[328134022,1716924632815,-164.9045522,0.00012989,2]
[328134023,1716924632826,-2702.3891506,0.00012989,2]
[328134024,1716924632836,-7066.52057408,0.00012998,2]
[328134025,1716924632845,-2561.864215,0.00012998,2]
[328134026,1716924632855,-720.48787574,0.00012998,2]
[328134027,1716924632864,-219.09683908,0.00012998,2]
[328134028,1716924632875,-155.0,0.00012998,2]
[328134029,1716924632885,-1000.0,0.00012998,2]
[328134030,1716924632894,-2922.78543205,0.00012998,2]
[328134031,1716924632904,-219.78136042,0.00012999,2]
[328134032,1716924632914,-7521.94316228,0.00012999,2]
[328134033,1716924632923,-74801.1129446,0.00013,2]
[328134034,1716924632933,-94149.91434779,0.00013,2]
[328134035,1716924632944,-299.15348563,0.00013,2]
[328134036,1716924632953,-2000.0,0.00013,2]
[328134037,1716924632963,-200.0,0.00013,2]
[328134038,1716924632973,-2421.4956,0.00013,2]
[328134039,1716924632982,-5006.98473239,0.0001305,2]
[328134040,1716924632992,-250.0,0.00013077,2]
[328134041,1716924633002,-163.04,0.00013177,2]
[328134042,1716924633011,-1033.8,0.00013277,2]
[328134043,1716924633022,-164.43,0.00013285,2]
[328134044,1716924633032,-192.32,0.00013384,2]
[328134045,1716924633042,-1000.0,0.000135,2]
[328134046,1716924633052,-151.0,0.00013613,3]
[328134047,1716924633061,-200.0,0.00013699,2]
[328134048,1716924633070,-228.67,0.00013699,2]
[328134049,1716924633079,-1390.38,0.00013699,2]
[328134050,1716924633088,-200.0,0.00013699,2]
[328134051,1716924633097,-2751.0,0.00013699,2]
[328134052,1716924633107,-1000.0,0.00013846,2]
[328134053,1716924633116,-159.0,0.00013973,2]
[328134054,1716924633126,-157.25,0.00013973,2]
[328134055,1716924633135,-155.13,0.00013973,2]
[328134056,1716924633144,-157.5,0.00013973,2]
[328134057,1716924633154,-1390.38,0.00014384,2]
[328134058,1716924633164,-171.72,0.00014551,2]
[328134059,1716924633174,-688.729831,0.00014768,2]
[328134060,1716924633184,-168.22266604,0.000149,2]
[328134061,1716924633193,-7500.0,0.000149,2]
[328134062,1716924633202,-155.2721803,0.00014998,2]
[328134063,1716924633216,-277.55993092,0.00014998,2]
[328134064,1716924633226,-156.19946984,0.00014998,2]
[328134065,1716924633237,-619.40919627,0.00015,2]
[328134066,1716924633247,-1043.83643081,0.00015,2]
[328134067,1716924633257,-325.28545213,0.00015,2]
[328134068,1716924633266,-216.31651485,0.00015,2]
[328134069,1716924633276,-4217.45561659,0.00015,2]
[328134070,1716924633288,-155.0,0.00015,2]
[328134071,1716924633300,-1917.35025342,0.00015,2]
[328134072,1716924633311,-111413.64556338,0.00015,2]
[328134073,1716924633322,-5900.0,0.00015,2]
[328134074,1716924633333,-2390.0,0.00015,2]
[328134075,1716924633343,-695.0,0.00015,2]
[328134076,1716924633354,-1390.38,0.00015068,2]
[328134077,1716924633365,-15645.80336868,0.000154,2]
[328134078,1716924633376,-1000.0,0.00015577,2]
[328134079,1716924633386,-192.32,0.00015648,2]
[328134080,1716924633397,-1390.38,0.00015753,2]
[328134081,1716924633407,-177.13,0.00015831,2]
[328134082,1716924633417,-1033.8,0.00016017,2]
[328134083,1716924633427,-171.72,0.00016095,2]
[328134084,1716924633438,-1390.38,0.00016438,2]
[328134085,1716924633451,-4617.99,0.00016438,2]
[328134086,1716924633461,-1228.02339539,0.000165,2]
[328134087,1716924633471,-688.729831,0.00016637,2]
[328134088,1716924633481,-229.59022016,0.00017215,2]
[328134089,1716924633492,-163802.04922861,0.00017225,2]
[328134090,1716924633501,-1000.0,0.00017308,2]
[328134091,1716924633511,-171.72,0.00017639,2]
[328134092,1716924633524,-1467.0,0.0001788,2]
[328134093,1716924633533,-544.0,0.0001788,2]
[328134094,1716924633543,-192.32,0.00017912,2]
[328134095,1716924633554,-804.69308319,0.00018,2]
[328134096,1716924633563,-2421.4956,0.00018,2]
[328134097,1716924633573,-688.729831,0.00018505,2]
[328134098,1716924633582,-1033.8,0.00018757,2]
[328134099,1716924633591,-155.0,0.00019,2]
[328134100,1716924633601,-6536.10473705,0.00019,2]
[328134101,1716924633610,-1000.0,0.00019039,2]
[328134102,1716924633620,-1040.4552301,0.00019178,2]
[328134103,1716924633629,-180.0617525,0.00019178,2]
[328134104,1716924633639,-500.0,0.00019178,2]
[328134105,1716924633648,-484.57899808,0.00019178,2]
[328134106,1716924633658,-254.01799931,0.00019178,2]
[328134107,1716924633668,-163.04,0.00019765,2]
[328134108,1716924633885,-634.26621699,0.0002,2]
[328134109,1716924633902,-862.89388826,0.0002,2]
[328134110,1716924633912,-1074.71543708,0.0002,4]
[328134111,1716924633921,-150.0,0.0002,2]
[328134112,1716924633930,-500.0,0.0002,2]
[328134113,1716924633940,-500.0,0.0002,2]
[328134114,1716924633949,-500.0,0.0002,2]
[328134115,1716924633958,-500.0,0.0002,2]
[328134116,1716924633967,-500.0,0.0002,2]
[328134117,1716924633977,-500.0,0.0002,2]
[328134118,1716924633986,-500.0,0.0002,2]
[328134119,1716924633996,-500.0,0.0002,2]
[328134120,1716924634005,-500.0,0.0002,2]
[328134121,1716924634014,-500.0,0.0002,2]
[328134122,1716924634023,-192.32,0.00020176,2]
[328134123,1716924634033,-4018.0,0.000202,5]
[328134124,1716924634042,-500.0,0.000202,2]
[328134125,1716924634053,-500.0,0.000202,2]
[328134126,1716924634062,-500.0,0.000202,2]
[328134127,1716924634071,-500.0,0.000202,2]
[328134128,1716924634080,-500.0,0.000202,2]
[328134129,1716924634090,-688.729831,0.00020373,2]
[328134130,1716924634099,-150.0,0.000205,2]
[328134131,1716924634108,-1000.0,0.00020769,2]
[328134132,1716924634117,-544.0,0.0002088,2]
[328134133,1716924634127,-20000.0,0.00021,2]
[328134134,1716924634136,-150.0,0.00021,2]
[328134135,1716924634146,-150.0,0.000215,3]
[328134136,1716924634155,-154.88726914,0.00021861,2]
[328134137,1716924634165,-176.62,0.00021918,2]
[328134138,1716924634174,-788.55765148,0.00022,2]
[328134139,1716924634184,-200.0,0.00022,2]
[328134140,1716924634194,-30000.0,0.00022,3]
[328134141,1716924634203,-150.0,0.00022,3]
[328134142,1716924634212,-159.71480284,0.00022053,2]
[328134143,1716924634222,-688.729831,0.00022242,2]
[328134144,1716924634231,-162.82,0.00022242,2]
[328134145,1716924634240,-352.4,0.00022242,2]
[328134146,1716924634250,-421.43,0.00022242,2]
[328134147,1716924634259,-300.0,0.00022242,2]
[328134148,1716924634268,-163.73,0.00022242,2]
[328134149,1716924634278,-421.43,0.00022242,2]
[328134150,1716924634287,-150.0,0.00022242,2]
[328134151,1716924634298,-352.4,0.00022242,2]
[328134152,1716924634308,-163.73,0.00022242,2]
[328134153,1716924634318,-965.02,0.00022242,2]
[328134154,1716924634327,-241.97,0.00022242,2]
[328134155,1716924634336,-163.73,0.00022242,2]
[328134156,1716924634345,-150.0,0.00022242,2]
[328134157,1716924634355,-163.73,0.00022242,2]
[328134158,1716924634364,-163.73,0.00022242,2]
[328134159,1716924634374,-326.37,0.00022242,2]
[328134160,1716924634383,-168.22266602,0.0002235,2]
[328134161,1716924634393,-192.32,0.0002244,2]
[328134162,1716924634402,-150.0,0.000225,3]
[328134163,1716924634411,-153.06481681,0.00022561,2]
[328134164,1716924634421,-1453.91984255,0.000229,5]
[328134165,1716924634431,-1354.75597675,0.000229,2]
[328134166,1716924634440,-1740.6,0.00022981,2]
[328134167,1716924634456,-479.54,0.00022981,2]
[328134168,1716924634466,-416.21,0.00022981,2]
[328134169,1716924634475,-416.21,0.00022981,2]
[328134170,1716924634484,-416.21,0.00022981,2]
[328134171,1716924634493,-416.21,0.00022981,2]
[328134172,1716924634502,-416.21,0.00022981,2]
[328134173,1716924634511,-416.21,0.00022981,2]
[328134174,1716924634520,-416.21,0.00022981,2]
[328134175,1716924634533,-416.21,0.00022981,2]
[328134176,1716924634543,-1841.6025653,0.00022984,2]
[328134177,1716924634554,-419.6554338,0.00022984,2]
[328134178,1716924634563,-163.4720024,0.00022984,2]
[328134179,1716924634572,-2678.9131032,0.00022984,2]
[328134180,1716924634582,-5551.96278664,0.00023,2]
[328134181,1716924634591,-200.24456635,0.00023,2]
[328134182,1716924634601,-2421.4956,0.00023,2]
[328134183,1716924634610,-195.870641,0.00023,3]
[328134184,1716924634621,-1413.95999108,0.00023,2]
[328134185,1716924634630,-1413.95999108,0.00023,2]
[328134186,1716924634639,-1413.95999108,0.00023,2]
[328134187,1716924634647,-391.54545892,0.00023,2]
[328134188,1716924634662,-291.44373864,0.00023,2]
[328134189,1716924636818,-325.10861145,0.00023,2]
[328134190,1716924636830,-405.86218207,0.00023,2]
[328134191,1716924636840,-425.56781797,0.00023,2]
[328134192,1716924636851,-988.39217311,0.00023,2]
[328134193,1716924636860,-1413.95999108,0.00023,2]
[328134194,1716924636869,-1413.95999108,0.00023,2]
[328134195,1716924636879,-1413.95999108,0.00023,2]
[328134196,1716924636888,-1413.95999108,0.00023,2]
[328134197,1716924636897,-1413.95999108,0.00023,2]
[328134198,1716924636906,-1413.95999108,0.00023,2]
[328134199,1716924636915,-1413.95999108,0.00023,2]
[328134200,1716924636924,-1413.95999108,0.00023,2]
[328134202,1716924636934,-1413.95999108,0.00023,2]
[328134204,1716924636943,-1413.95999108,0.00023,2]
[328134206,1716924636952,-1413.95999108,0.00023,2]
[328134208,1716924636961,-1413.95999108,0.00023,2]
[328134210,1716924636970,-1413.95999108,0.00023,2]
[328134212,1716924636979,-1413.95999108,0.00023,2]
[328134214,1716924636989,-1413.95999108,0.00023,2]
[328134216,1716924636998,-1413.95999108,0.00023,2]
[328134218,1716924637007,-1413.95999108,0.00023,2]
[328134220,1716924637016,-1413.95999108,0.00023,2]
[328134222,1716924637026,-1413.95999108,0.00023,2]
[328134224,1716924637034,-1413.95999108,0.00023,2]
[328134226,1716924637045,-1413.95999108,0.00023,2]
[328134228,1716924637054,-1413.95999108,0.00023,2]
[328134230,1716924637063,-1413.95999108,0.00023,2]
[328134232,1716924637073,-1413.95999108,0.00023,2]
[328134234,1716924637082,-1413.95999108,0.00023,2]
[328134236,1716924637091,-1413.95999108,0.00023,2]
[328134238,1716924637100,-1413.95999108,0.00023,2]
[328134240,1716924637110,-1413.95999108,0.00023,2]
[328134242,1716924637119,-1413.95999108,0.00023,2]
[328134244,1716924637129,-1413.95999108,0.00023,2]
[328134246,1716924637138,-1413.95999108,0.00023,2]
[328134248,1716924637147,-1413.95999108,0.00023,2]
[328134250,1716924637156,-1413.95999108,0.00023,2]
[328134252,1716924637166,-1413.95999108,0.00023,2]
[328134254,1716924637175,-1413.95999108,0.00023,2]
[328134256,1716924637185,-1413.95999108,0.00023,2]
[328134258,1716924637194,-1413.95999108,0.00023,2]
[328134260,1716924637203,-1413.95999108,0.00023,2]
[328134262,1716924637212,-1413.95999108,0.00023,2]
[328134264,1716924637221,-1413.95999108,0.00023,2]
[328134266,1716924637230,-1413.95999108,0.00023,2]
[328134268,1716924637239,-1413.95999108,0.00023,2]
[328134270,1716924637249,-1413.95999108,0.00023,2]
[328134272,1716924637258,-1413.95999108,0.00023,2]
[328134274,1716924637267,-1413.95999108,0.00023,2]
[328134276,1716924637275,-1413.95999108,0.00023,2]
[328134278,1716924637285,-1413.95999108,0.00023,2]
[328134280,1716924637295,-1413.95999108,0.00023,2]
[328134282,1716924637305,-1413.95999108,0.00023,2]
[328134284,1716924637315,-1413.95999108,0.00023,2]
[328134286,1716924637325,-1413.95999108,0.00023,2]
[328134288,1716924637335,-1413.95999108,0.00023,2]
[328134290,1716924637345,-1413.95999108,0.00023,2]
[328134292,1716924637355,-1413.95999108,0.00023,2]
[328134294,1716924637365,-1413.95999108,0.00023,2]
[328134296,1716924637374,-1413.95999108,0.00023,2]
[328134299,1716924637393,-1413.95999108,0.00023,2]
[328134301,1716924637405,-1413.95999108,0.00023,2]
[328134303,1716924637416,-1413.95999108,0.00023,2]
[328134305,1716924637426,-1413.95999108,0.00023,2]
[328134307,1716924637438,-1413.95999108,0.00023,2]
[328134309,1716924637449,-1413.95999108,0.00023,2]
[328134312,1716924637461,-1413.95999108,0.00023,2]
[328134314,1716924637471,-1413.95999108,0.00023,2]
[328134315,1716924637482,-1413.95999108,0.00023,2]
[328134318,1716924637493,-1413.95999108,0.00023,2]
[328134320,1716924637503,-1413.95999108,0.00023,2]
[328134322,1716924637513,-1413.95999108,0.00023,2]
[328134324,1716924637524,-1413.95999108,0.00023,2]
[328134326,1716924637536,-1413.95999108,0.00023,2]
[328134328,1716924637546,-390.85890393,0.00023,2]
[328134330,1716924637560,-1023.10108715,0.00023,2]
[328134332,1716924637571,-1413.95999108,0.00023,2]
[328134334,1716924637581,-1413.95999108,0.00023,2]
[328134336,1716924637592,-1413.95999108,0.00023,2]
[328134338,1716924637602,-1413.95999108,0.00023,2]
[328134340,1716924637612,-1413.95999108,0.00023,2]
[328134342,1716924637623,-1413.95999108,0.00023,2]
[328134345,1716924637633,-1413.95999108,0.00023,2]
[328134347,1716924637643,-1413.95999108,0.00023,2]
[328134349,1716924637653,-1413.95999108,0.00023,2]
[328134351,1716924637663,-1413.95999108,0.00023,2]
[328134353,1716924637673,-1413.95999108,0.00023,2]
[328134355,1716924637683,-1413.95999108,0.00023,2]
[328134357,1716924637694,-1413.95999108,0.00023,2]
[328134359,1716924637704,-1413.95999108,0.00023,2]
[328134361,1716924637714,-1413.95999108,0.00023,2]
[328134363,1716924637724,-1413.95999108,0.00023,2]
[328134365,1716924637734,-1413.95999108,0.00023,2]
[328134367,1716924637744,-1413.95999108,0.00023,2]
[328134369,1716924637754,-1413.95999108,0.00023,2]
[328134371,1716924637765,-1413.95999108,0.00023,2]
[328134373,1716924637775,-1413.95999108,0.00023,2]
[328134375,1716924637785,-1413.95999108,0.00023,2]
[328134377,1716924637795,-1413.95999108,0.00023,2]
[328134379,1716924637805,-1413.95999108,0.00023,2]